{"text_format":"3","workbook":"xlsx","n_sheets":2,"sheets":["PianificazioneProgetto","Informazioni"],"not_rendered":{"images":1,"defined_names":7},"read":"whole","date_system":"1900"}

{"sheet":"PianificazioneProgetto","index":0,"n_rows":33,"n_cols":64,"rows_kept":33,"merged":[[2,2,2,3],[2,4,2,5],[3,2,3,3],[3,8,3,14],[3,15,3,21],[3,22,3,28],[3,29,3,35],[3,36,3,42],[3,43,3,49],[3,50,3,56],[3,57,3,63],[4,1,4,6]]}
["Come creare la pianificazione progetto in questo foglio di lavoro.\nImmettere il titolo del progetto nella cella B1. \nLe informazioni su come usare questo foglio di lavoro, con istruzioni per le utilità per la lettura dello schermo e l'autore della cartella di lavoro, si trovano nel foglio di lavoro Informazioni.\nContinuare a spostarsi verso il basso nella colonna A per ascoltare altre istruzioni.","TITOLO DEL PROGETTO",{"$nulls":6},"Diagramma di Gantt semplice di Vertex42.com"]
["Immettere il nome società nella cella B2.","Nome società",{"$nulls":6},"https://www.vertex42.com/ExcelTemplates/simple-gantt-chart.html"]
["Immettere il nome del Responsabile del progetto nella cella B3. Immettere la data di inizio progetto nella cella E3. Inizio progetto: l’etichetta si trova nella cella C3.","Responsabile del progetto","Inizio progetto:",null,{"$f":"TODAY()","v":"2019-03-28"}]
["Visualizza settimana nella cella E4 rappresenta la settimana iniziale da visualizzare nella pianificazione del progetto nella cella I4. La data di inizio del progetto è la Settimana 1. Per cambiare la visualizzazione della settimana, è sufficiente immettere un diverso numero di settimana nella cella E4.\nLa data di inizio di ogni settimana, a partire dalla settimana indicata nella cella E4, inizia nella cella I4 e viene calcolata automaticamente. Sono disponibili 8 settimane in questa visualizzazione: dalla cella I4 alla cella BF4.\nQueste celle non si dovrebbero modificare.\nL'etichetta Visualizza settimana: si trova nella cella C4.",null,"Visualizza settimana:",null,1,{"$nulls":3},{"$f":"I5","v":"2019-03-25"},{"$nulls":6},{"$f":"P5","v":"2019-04-01"},{"$nulls":6},{"$f":"W5","v":"2019-04-08"},{"$nulls":6},{"$f":"AD5","v":"2019-04-15"},{"$nulls":6},{"$f":"AK5","v":"2019-04-22"},{"$nulls":6},{"$f":"AR5","v":"2019-04-29"},{"$nulls":6},{"$f":"AY5","v":"2019-05-06"},{"$nulls":6},{"$f":"BF5","v":"2019-05-13"}]
["Le celle da I5 a BL5 contengono il numero dei giorni delle settimane rappresentate nei blocchi superiori e vengono calcolati automaticamente.\nQueste celle non si dovrebbero modificare.\nLa data corrente viene indicata in rosso (esadecimale AD3815) a partire dalla data odierna nella riga 5 per l’intera colonna di date fino alla fine della pianificazione del progetto.",{"$nulls":7},{"$f":"_xlfn.SINGLE(Inizio_progetto)-WEEKDAY(_xlfn.SINGLE(Inizio_progetto),1)+2+7*(_xlfn.SINGLE(Visualizza_settimana)-1)","v":"2019-03-25"},{"$f":"I5+1","v":"2019-03-26"},{"$f":"J5+1","v":"2019-03-27"},"2019-03-28","2019-03-29","2019-03-30","2019-03-31",{"$f":"O5+1","v":"2019-04-01"},{"$f":"P5+1","v":"2019-04-02"},"2019-04-03","2019-04-04","2019-04-05","2019-04-06","2019-04-07",{"$f":"V5+1","v":"2019-04-08"},{"$f":"W5+1","v":"2019-04-09"},"2019-04-10","2019-04-11","2019-04-12","2019-04-13","2019-04-14",{"$f":"AC5+1","v":"2019-04-15"},{"$f":"AD5+1","v":"2019-04-16"},"2019-04-17","2019-04-18","2019-04-19","2019-04-20","2019-04-21",{"$f":"AJ5+1","v":"2019-04-22"},{"$f":"AK5+1","v":"2019-04-23"},"2019-04-24","2019-04-25","2019-04-26","2019-04-27","2019-04-28",{"$f":"AQ5+1","v":"2019-04-29"},{"$f":"AR5+1","v":"2019-04-30"},"2019-05-01","2019-05-02","2019-05-03","2019-05-04","2019-05-05",{"$f":"AX5+1","v":"2019-05-06"},{"$f":"AY5+1","v":"2019-05-07"},{"$f":"AZ5+1","v":"2019-05-08"},"2019-05-09","2019-05-10","2019-05-11","2019-05-12",{"$f":"BE5+1","v":"2019-05-13"},{"$f":"BF5+1","v":"2019-05-14"},{"$f":"BG5+1","v":"2019-05-15"},"2019-05-16","2019-05-17","2019-05-18","2019-05-19"]
["Questa riga contiene le intestazioni per la pianificazione di progetto che segue. \nSpostarsi da B6 a BL 6 per ascoltare il contenuto. La prima lettera di ogni giorno della settimana indicata nell’intestazione, inizia nella cella I6 e continua fino alla cella BL6.\nI grafici con la sequenza temporale di progetto vengono generati automaticamente in base alle date di inizio e di fine immesse, usando i formati condizionali.\nNon modificare il contenuto delle celle delle colonne dopo la colonna I a partire dalla cella I7.","ATTIVITÀ","ASSEGNATO\nA","AVANZAMENTO","INIZIO","FINE",null,"GIORNI",{"$f":"LEFT(TEXT(I5,\"ggg\"),1)","v":"l"},"m","m","g","v","s","d","l","m","m","g","v","s","d","l","m","m","g","v","s","d","l","m","m","g","v","s","d","l","m","m","g",{"$f":"LEFT(TEXT(AO5,\"ggg\"),1)","v":"v"},"s","d","l","m","m","g","v","s","d","l","m","m","g","v","s","d","l","m","m","g","v","s","d"]
["Non eliminare questa riga. Questa riga è nascosta per proteggere una formula usata per evidenziare il giorno corrente all’interno della pianificazione di progetto. ",{"$nulls":6},{"$f":"IF(OR(ISBLANK(_xlfn.SINGLE(inizio_attività)),ISBLANK(_xlfn.SINGLE(fine_attività))),\"\",_xlfn.SINGLE(fine_attività)-_xlfn.SINGLE(inizio_attività)+1)","v":""}]
["La cella B8 contiene il titolo di esempio della Fase 1. \nImmettere un nuovo titolo nella cella B8.\nImmettere il nome della persona a cui assegnare la fase nella cella C8, se pertinente al progetto.\nImmettere lo stato di avanzamento per l’intera fase nella cella D8, se pertinente al progetto.\nImmettere la data di inizio e di fine dell’intera fase nelle celle E8 e F8, se pertinente al progetto. \nIl diagramma di Gantt immetterà automaticamente le date appropriate e applicherà l'ombreggiatura a seconda dello stato.\nPer eliminare la fase e utilizzare solo le attività, è sufficiente eliminare la riga corrente.","Titolo fase 1",{"$nulls":5},{"$f":"IF(OR(ISBLANK(_xlfn.SINGLE(inizio_attività)),ISBLANK(_xlfn.SINGLE(fine_attività))),\"\",_xlfn.SINGLE(fine_attività)-_xlfn.SINGLE(inizio_attività)+1)","v":""}]
["La cella B9 contiene l'attività di esempio \"Attività 1\". \nImmettere un nuovo nome per l’attività nella cella B9.\nImmettere il nome della persona a cui assegnare l'attività nella cella C9.\nImmettere lo stato di avanzamento dell'attività nella cella D9. Una barra di stato viene visualizzata nella cella ed è ombreggiata in base allo stato di avanzamento. Ad esempio, lo stato di avanzamento pari al 50% applicherà l'ombreggiatura a metà della cella.\nImmettere la data di inizio dell’attività nella cella E9.\nImmettere la data di fine dell’attività nella cella F9.\nViene visualizzata una barra di stato ombreggiata in blocchi per le date immesse, a partire dalla cella I9 fino alla BL9. ","Attività 1","Nome",{"v":0.5,"d":"50%"},{"$f":"_xlfn.SINGLE(Inizio_progetto)","v":"2019-03-28"},{"$f":"E9+3","v":"2019-03-31"},null,{"$f":"IF(OR(ISBLANK(_xlfn.SINGLE(inizio_attività)),ISBLANK(_xlfn.SINGLE(fine_attività))),\"\",_xlfn.SINGLE(fine_attività)-_xlfn.SINGLE(inizio_attività)+1)","v":4}]
["Dalla riga 10 alla 13 è ripetuto lo schema della riga 9. \nRipetere le istruzioni della cella A9 per tutte le righe di attività nel foglio di lavoro. Sovrascrivere i dati di esempio.\nL’esempio di un'altra fase inizia nella cella A14. \nContinuare a immettere le attività nelle celle da A10 a A13 o passare alla cella A14 per altre informazioni.","Attività 2",null,{"v":0.6,"d":"60%"},{"$f":"F9","v":"2019-03-31"},{"$f":"E10+2","v":"2019-04-02"},null,{"$f":"IF(OR(ISBLANK(_xlfn.SINGLE(inizio_attività)),ISBLANK(_xlfn.SINGLE(fine_attività))),\"\",_xlfn.SINGLE(fine_attività)-_xlfn.SINGLE(inizio_attività)+1)","v":3}]
[null,"Attività 3",null,{"v":0.5,"d":"50%"},{"$f":"F10","v":"2019-04-02"},{"$f":"E11+4","v":"2019-04-06"},null,{"$f":"IF(OR(ISBLANK(_xlfn.SINGLE(inizio_attività)),ISBLANK(_xlfn.SINGLE(fine_attività))),\"\",_xlfn.SINGLE(fine_attività)-_xlfn.SINGLE(inizio_attività)+1)","v":5}]
[null,"Attività 4",null,{"v":0.25,"d":"25%"},{"$f":"F11","v":"2019-04-06"},{"$f":"E12+5","v":"2019-04-11"},null,{"$f":"IF(OR(ISBLANK(_xlfn.SINGLE(inizio_attività)),ISBLANK(_xlfn.SINGLE(fine_attività))),\"\",_xlfn.SINGLE(fine_attività)-_xlfn.SINGLE(inizio_attività)+1)","v":6}]
[null,"Attività 5",null,null,{"$f":"E10+1","v":"2019-04-01"},{"$f":"E13+2","v":"2019-04-03"},null,{"$f":"IF(OR(ISBLANK(_xlfn.SINGLE(inizio_attività)),ISBLANK(_xlfn.SINGLE(fine_attività))),\"\",_xlfn.SINGLE(fine_attività)-_xlfn.SINGLE(inizio_attività)+1)","v":3}]
["La cella a destra contiene il titolo di esempio della Fase 2. \nÈ possibile creare una nuova fase in qualsiasi momento nella colonna B. Questa pianificazione di progetto non richiede fasi. Per rimuovere la fase, è sufficiente eliminare la riga.\nPer creare un blocco di fase in questa riga, immettere un nuovo titolo nella cella a destra.\nPer continuare ad aggiungere attività alla fase precedente, immettere una nuova riga sopra a questa e inserire i dati delle attività seguendo le istruzioni della cella A9.\nAggiornare i dettagli della fase nella cella a destra sulla base delle istruzioni della cella A8.\nSpostarsi verso il basso nelle celle della colonna A per altre informazioni.\nSe non sono state aggiunte nuove righe al foglio di lavoro, sono disponibili 2 ulteriori blocchi di esempio nelle celle B20 e B26. In caso contrario, spostarsi lungo le celle della colonna A per ulteriori blocchi. \nRipetere le istruzioni delle celle A8 e A9 se necessario.","Titolo fase 2",{"$nulls":5},{"$f":"IF(OR(ISBLANK(_xlfn.SINGLE(inizio_attività)),ISBLANK(_xlfn.SINGLE(fine_attività))),\"\",_xlfn.SINGLE(fine_attività)-_xlfn.SINGLE(inizio_attività)+1)","v":""}]
[null,"Attività 1",null,{"v":0.5,"d":"50%"},{"$f":"E13+1","v":"2019-04-02"},{"$f":"E15+4","v":"2019-04-06"},null,{"$f":"IF(OR(ISBLANK(_xlfn.SINGLE(inizio_attività)),ISBLANK(_xlfn.SINGLE(fine_attività))),\"\",_xlfn.SINGLE(fine_attività)-_xlfn.SINGLE(inizio_attività)+1)","v":5}]
[null,"Attività 2",null,{"v":0.5,"d":"50%"},{"$f":"E15+2","v":"2019-04-04"},{"$f":"E16+5","v":"2019-04-09"},null,{"$f":"IF(OR(ISBLANK(_xlfn.SINGLE(inizio_attività)),ISBLANK(_xlfn.SINGLE(fine_attività))),\"\",_xlfn.SINGLE(fine_attività)-_xlfn.SINGLE(inizio_attività)+1)","v":6}]
[null,"Attività 3",null,null,{"$f":"F16","v":"2019-04-09"},{"$f":"E17+3","v":"2019-04-12"},null,{"$f":"IF(OR(ISBLANK(_xlfn.SINGLE(inizio_attività)),ISBLANK(_xlfn.SINGLE(fine_attività))),\"\",_xlfn.SINGLE(fine_attività)-_xlfn.SINGLE(inizio_attività)+1)","v":4}]
[null,"Attività 4",null,null,{"$f":"E17","v":"2019-04-09"},{"$f":"E18+2","v":"2019-04-11"},null,{"$f":"IF(OR(ISBLANK(_xlfn.SINGLE(inizio_attività)),ISBLANK(_xlfn.SINGLE(fine_attività))),\"\",_xlfn.SINGLE(fine_attività)-_xlfn.SINGLE(inizio_attività)+1)","v":3}]
[null,"Attività 5",null,null,{"$f":"E18","v":"2019-04-09"},{"$f":"E19+3","v":"2019-04-12"},null,{"$f":"IF(OR(ISBLANK(_xlfn.SINGLE(inizio_attività)),ISBLANK(_xlfn.SINGLE(fine_attività))),\"\",_xlfn.SINGLE(fine_attività)-_xlfn.SINGLE(inizio_attività)+1)","v":4}]
["Esempio di blocco con titolo di fase","Titolo fase 3",{"$nulls":5},{"$f":"IF(OR(ISBLANK(_xlfn.SINGLE(inizio_attività)),ISBLANK(_xlfn.SINGLE(fine_attività))),\"\",_xlfn.SINGLE(fine_attività)-_xlfn.SINGLE(inizio_attività)+1)","v":""}]
[null,"Attività 1",null,null,{"$f":"E9+15","v":"2019-04-12"},{"$f":"E21+5","v":"2019-04-17"},null,{"$f":"IF(OR(ISBLANK(_xlfn.SINGLE(inizio_attività)),ISBLANK(_xlfn.SINGLE(fine_attività))),\"\",_xlfn.SINGLE(fine_attività)-_xlfn.SINGLE(inizio_attività)+1)","v":6}]
[null,"Attività 2",null,null,{"$f":"F21+1","v":"2019-04-18"},{"$f":"E22+4","v":"2019-04-22"},null,{"$f":"IF(OR(ISBLANK(_xlfn.SINGLE(inizio_attività)),ISBLANK(_xlfn.SINGLE(fine_attività))),\"\",_xlfn.SINGLE(fine_attività)-_xlfn.SINGLE(inizio_attività)+1)","v":5}]
[null,"Attività 3",null,null,{"$f":"E22+5","v":"2019-04-23"},{"$f":"E23+5","v":"2019-04-28"},null,{"$f":"IF(OR(ISBLANK(_xlfn.SINGLE(inizio_attività)),ISBLANK(_xlfn.SINGLE(fine_attività))),\"\",_xlfn.SINGLE(fine_attività)-_xlfn.SINGLE(inizio_attività)+1)","v":6}]
[null,"Attività 4",null,null,{"$f":"F23+1","v":"2019-04-29"},{"$f":"E24+4","v":"2019-05-03"},null,{"$f":"IF(OR(ISBLANK(_xlfn.SINGLE(inizio_attività)),ISBLANK(_xlfn.SINGLE(fine_attività))),\"\",_xlfn.SINGLE(fine_attività)-_xlfn.SINGLE(inizio_attività)+1)","v":5}]
[null,"Attività 5",null,null,{"$f":"E23","v":"2019-04-23"},{"$f":"E25+4","v":"2019-04-27"},null,{"$f":"IF(OR(ISBLANK(_xlfn.SINGLE(inizio_attività)),ISBLANK(_xlfn.SINGLE(fine_attività))),\"\",_xlfn.SINGLE(fine_attività)-_xlfn.SINGLE(inizio_attività)+1)","v":5}]
["Esempio di blocco con titolo di fase","Titolo fase 4",{"$nulls":5},{"$f":"IF(OR(ISBLANK(_xlfn.SINGLE(inizio_attività)),ISBLANK(_xlfn.SINGLE(fine_attività))),\"\",_xlfn.SINGLE(fine_attività)-_xlfn.SINGLE(inizio_attività)+1)","v":""}]
[null,"Attività 1",null,null,"data","data",null,{"$f":"IF(OR(ISBLANK(_xlfn.SINGLE(inizio_attività)),ISBLANK(_xlfn.SINGLE(fine_attività))),\"\",_xlfn.SINGLE(fine_attività)-_xlfn.SINGLE(inizio_attività)+1)","v":{"$error":"#VALUE!"}}]
[null,"Attività 2",null,null,"data","data",null,{"$f":"IF(OR(ISBLANK(_xlfn.SINGLE(inizio_attività)),ISBLANK(_xlfn.SINGLE(fine_attività))),\"\",_xlfn.SINGLE(fine_attività)-_xlfn.SINGLE(inizio_attività)+1)","v":{"$error":"#VALUE!"}}]
[null,"Attività 3",null,null,"data","data",null,{"$f":"IF(OR(ISBLANK(_xlfn.SINGLE(inizio_attività)),ISBLANK(_xlfn.SINGLE(fine_attività))),\"\",_xlfn.SINGLE(fine_attività)-_xlfn.SINGLE(inizio_attività)+1)","v":{"$error":"#VALUE!"}}]
[null,"Attività 4",null,null,"data","data",null,{"$f":"IF(OR(ISBLANK(_xlfn.SINGLE(inizio_attività)),ISBLANK(_xlfn.SINGLE(fine_attività))),\"\",_xlfn.SINGLE(fine_attività)-_xlfn.SINGLE(inizio_attività)+1)","v":{"$error":"#VALUE!"}}]
[null,"Attività 5",null,null,"data","data",null,{"$f":"IF(OR(ISBLANK(_xlfn.SINGLE(inizio_attività)),ISBLANK(_xlfn.SINGLE(fine_attività))),\"\",_xlfn.SINGLE(fine_attività)-_xlfn.SINGLE(inizio_attività)+1)","v":{"$error":"#VALUE!"}}]
["Questa è una riga vuota",{"$nulls":6},{"$f":"IF(OR(ISBLANK(_xlfn.SINGLE(inizio_attività)),ISBLANK(_xlfn.SINGLE(fine_attività))),\"\",_xlfn.SINGLE(fine_attività)-_xlfn.SINGLE(inizio_attività)+1)","v":""}]
["Questa riga indica la fine della Pianificazione progetto. NON immettere dati in questa riga. \nÈ possibile inserire nuove righe SOPRA per continuare a costruire la pianificazione progetto.","Inserisci nuove righe SOPRA questa",{"$nulls":5},{"$f":"IF(OR(ISBLANK(_xlfn.SINGLE(inizio_attività)),ISBLANK(_xlfn.SINGLE(fine_attività))),\"\",_xlfn.SINGLE(fine_attività)-_xlfn.SINGLE(inizio_attività)+1)","v":""}]

{"sheet":"Informazioni","index":1,"n_rows":16,"n_cols":1,"rows_kept":16}
[]
["Diagramma di Gantt semplice di Vertex42.com"]
["https://www.vertex42.com/ExcelTemplates/simple-gantt-chart.html"]
["Informazioni su questo modello"]
["Questo modello fornisce un modo semplice di creare un diagramma di Gantt per visualizzare e gestire un progetto. È sufficiente immettere le attività e le date di inizio e fine, non sono necessarie formule. Le barre nel diagramma di Gantt indicano la durata delle attività e vengono visualizzate con la formattazione condizionale. Inserire nuove attività aggiungendo nuove righe."]
["Guida per le utilità per la lettura dello schermo"]
["Questa cartella contiene 2 fogli di lavoro. \n\nPianificazioneProgetto\nInformazioni\n\nLe istruzioni per ogni foglio di lavoro si trovano nella colonna A a partire dalla cella A1 di ogni foglio di lavoro. Sono scritte con testo nascosto. Ogni passaggio descrive le informazioni presenti nella riga corrispondente. Ogni passaggio successivo continua nella cella A2, A3 e così via, salvo diversa indicazione esplicita. Ad esempio, l'istruzione potrebbe indicare di \"passare alla cella A6\" per il passaggio successivo. \n\nQuesto testo nascosto non verrà stampato.\n\nPer rimuovere queste istruzioni dal foglio di lavoro, è sufficiente eliminare la colonna A."]
["Ulteriori informazioni:"]
["Fare clic sul collegamento seguente per visitare il sito vertex42.com e avere altre informazioni su come usare questo modello, su come calcolare i giorni lavorativi, creare relazioni tra attività, modificare i colori delle barre, aggiungere una barra di scorrimento per facilitare il cambio di visualizzazione settimana, estendere l'intervallo di date nel grafico, e così via."]
["Come usare il diagramma di Gantt"]
["Altri modelli di gestione progetto"]
["Visitare il sito Vertex42.com per scaricare altri modelli di gestione di progetto, inclusi altri tipi di pianificazione di progetto, diagrammi di Gantt, elenco di attività e così via."]
["Modelli di gestione progetto"]
["Informazioni su Vertex42"]
["Vertex42.com fornisce oltre 300 modelli di fogli di calcolo dal design professionale per aziende, privati e istituti di istruzione, la maggior parte dei quali sono disponibili gratuitamente per il download. Questa raccolta include un'ampia gamma di calendari, pianificazioni e fogli di calcolo per finanze personali per budget, riduzione del debito e ammortamento prestiti."]
["Le aziende troveranno modelli di fatture, schede attività, registri di inventario, rendiconti finanziari e pianificazione di progetti. Gli insegnanti e gli studenti troveranno risorse come programmi dei corsi, registri delle valutazioni e fogli di presenze. Sono disponibili modelli utili per organizzare la vita familiare, come piani alimentari, liste di controllo e registri di esercizi. Ogni modello è stato attentamente studiato, ottimizzato e migliorato nel tempo grazie ai commenti di migliaia di utenti."]